lending/lending_fUSD_20260325
["ID","MTS","AMOUNT","RATE_DAILY","PERIOD"]
[408903104,1774422639653,-150.0,0.00014295,2]
[408903105,1774422639662,-150.0,0.00014339,2]
[408903106,1774422639671,-1500.0,0.00014339,2]
[408903107,1774422639680,-2084.42,0.00014339,2]
[408903108,1774422639689,-843.69,0.00014339,2]
[408903109,1774422639699,-1419.83,0.00014339,2]
[408903110,1774422639707,-208.32,0.00014339,2]
[408903111,1774422639716,-5925.39,0.00014339,2]
[408903112,1774422639727,-5326.12,0.00014339,2]
[408903113,1774422639736,-2726.2,0.00014339,2]
[408903114,1774422639745,-150.0,0.00014339,2]
[408903115,1774422639754,-543.52364562,0.00014378,2]
[408903116,1774422639763,-2805.0,0.000144,2]
[408903117,1774422639773,-2805.0,0.000144,2]
[408903118,1774422639785,-1720.0,0.000144,2]
[408903119,1774422639794,-11566.98207334,0.00014449,2]
[408903120,1774422639804,-15295.61198971,0.00014493,2]
[408903121,1774422639814,-563.4108,0.00014504,2]
[408903122,1774422639824,-563.4108,0.00014504,2]
[408903123,1774422639834,-563.4108,0.00014504,2]
[408903124,1774422639845,-563.4108,0.00014504,2]
[408903125,1774422639855,-151.0,0.00014504,2]
[408903126,1774422639866,-166.66,0.00014513,2]
[408903127,1774422639877,-2000.0,0.00014516,2]
[408903128,1774422639888,-2000.0,0.00014516,2]
[408903130,1774422639897,-500.0,0.00014521,2]
[408903131,1774422639906,-1484.75578259,0.00014544,2]
[408903132,1774422639917,-1500.0,0.00014556,2]
[408903133,1774422639927,-1500.0,0.00014556,2]
[408903134,1774422639936,-1000.0,0.00014565,2]
[408903135,1774422639945,-1000.0,0.00014565,2]
[408903136,1774422639955,-1000.0,0.00014565,2]
[408903138,1774422639964,-1000.0,0.00014565,2]
[408903140,1774422639973,-150.0,0.00014715,2]
[408903142,1774422639982,-154.30546706,0.00014722,2]
[408903143,1774422639992,-416.0,0.00014778,5]
[408903144,1774422640001,-979.16666667,0.00014795,2]
[408903145,1774422640010,-160.0,0.00014795,2]
[408903146,1774422640020,-160.0,0.00014795,2]
[408903147,1774422640028,-11566.98207334,0.00014812,2]
[408903148,1774422640038,-15295.61198971,0.00014845,2]
[408903149,1774422640047,-151.0,0.000149,2]
[408903150,1774422640056,-524.080279,0.00014936,2]
[408903151,1774422640065,-524.080279,0.00014936,2]
[408903152,1774422640075,-524.080279,0.00014936,2]
[408903153,1774422640084,-524.080279,0.00014936,2]
[408903154,1774422640093,-237.213281,0.00014936,2]
[408903155,1774422640103,-237.213281,0.00014936,2]
[408903156,1774422640112,-237.213281,0.00014936,2]
[408903157,1774422640121,-237.213281,0.00014936,2]
[408903158,1774422640131,-1093.243076,0.00014936,2]
[408903159,1774422640141,-1093.243076,0.00014936,2]
[408903160,1774422640150,-1093.243076,0.00014936,2]
[408903161,1774422640160,-1093.243076,0.00014936,2]
[408903162,1774422640170,-166.66,0.00014936,2]
[408903163,1774422640179,-324.97,0.00014979,2]
[408903164,1774422640189,-267.15,0.00014979,2]
[408903165,1774422640198,-433.0,0.00014989,2]
[408903166,1774422640207,-1484.75578259,0.00014996,2]
[408903167,1774422640217,-300.0,0.00015,2]
[408903168,1774422640226,-1569.0,0.0001504,2]
[408903169,1774422640235,-1569.0,0.0001504,2]
[408903170,1774422640245,-520.0,0.0001504,2]
[408903171,1774422640254,-158.652186,0.00015064,2]
[408903172,1774422640263,-151.0,0.00015064,2]
[408903173,1774422640272,-158.652186,0.00015064,2]
[408903174,1774422640281,-151.0,0.00015064,2]
[408903175,1774422640291,-158.652186,0.00015064,2]
[408903176,1774422640300,-158.652186,0.00015064,2]
[408903177,1774422640310,-484.138929,0.00015064,2]
[408903178,1774422640319,-484.138929,0.00015064,2]
[408903179,1774422640328,-484.138929,0.00015064,2]
[408903180,1774422640337,-484.138929,0.00015064,2]
[408903181,1774422640347,-955.74374742,0.00015064,2]
[408903182,1774422640356,-2500.0,0.00015064,2]
[408903183,1774422640366,-150.0,0.0001508,2]
[408903184,1774422640375,-1262.0,0.0001508,2]
[408903185,1774422640385,-924.0,0.0001508,2]
[408903186,1774422640394,-1216.0,0.0001508,2]
[408903187,1774422640403,-6010.0,0.0001508,2]
[408903188,1774422640412,-417.966,0.0001508,2]
[408903189,1774422640422,-2000.0,0.00015104,2]
[408903190,1774422640431,-1500.0,0.00015113,2]
[408903191,1774422640440,-1077.35811308,0.00015113,2]
[408903192,1774422640450,-1500.0,0.00015113,2]
[408903193,1774422640460,-679.56794272,0.00015113,2]
[408903194,1774422640469,-150.0,0.00015136,2]
[408903195,1774422640478,-11566.98207334,0.00015174,2]
[408903196,1774422640487,-388.593738,0.00015175,2]
[408903197,1774422640497,-388.593738,0.00015175,2]
[408903198,1774422640506,-388.593738,0.00015175,2]
[408903199,1774422640515,-388.593738,0.00015175,2]
[408903200,1774422640525,-260.218818,0.00015175,2]
[408903201,1774422640535,-305.75,0.00015184,2]
[408903202,1774422640544,-15295.61198971,0.00015197,2]
[408903203,1774422640553,-578.20924308,0.00015199,2]
[408903204,1774422640563,-500.0,0.00015199,2]
[408903205,1774422640572,-721.12765535,0.00015199,2]
[408903206,1774422640582,-151.0,0.00015199,2]
[408903207,1774422640592,-180.1206894,0.00015199,2]
[408903208,1774422640602,-9257.46298271,0.00015199,2]
[408903209,1774422640616,-294.70488276,0.00015199,2]
[408903210,1774422640625,-227.79926228,0.00015199,2]
[408903211,1774422640634,-500.0,0.00015199,2]
[408903212,1774422640644,-500.0,0.00015199,2]
[408903213,1774422640653,-500.0,0.00015199,2]
[408903214,1774422640662,-500.0,0.00015199,2]
[408903215,1774422640672,-500.0,0.00015199,2]
[408903216,1774422640683,-351.26255365,0.00015199,2]
[408903217,1774422640692,-500.0,0.00015199,2]
[408903218,1774422640700,-500.0,0.00015199,2]
[408903219,1774422640710,-500.0,0.00015199,2]
[408903220,1774422640718,-500.0,0.00015199,2]
[408903221,1774422640727,-500.0,0.00015199,2]
[408903222,1774422640736,-151.0,0.00015199,2]
[408903223,1774422640745,-500.0,0.00015199,2]
[408903224,1774422640755,-500.0,0.00015199,2]
[408903226,1774422640764,-174.61919141,0.00015199,2]
[408903227,1774422640773,-500.0,0.00015199,2]
[408903228,1774422640782,-500.0,0.00015199,2]
[408903229,1774422640791,-500.0,0.00015199,2]
[408903230,1774422640801,-200.0,0.00015199,2]
[408903231,1774422640810,-500.0,0.00015199,2]
[408903232,1774422640819,-262.90206542,0.00015199,2]
[408903233,1774422640828,-250.0,0.00015199,2]
[408903234,1774422640837,-250.0,0.00015199,2]
[408903235,1774422640845,-250.0,0.00015199,2]
[408903236,1774422640854,-250.0,0.00015199,2]
[408903237,1774422640863,-250.0,0.00015199,2]
[408903238,1774422640873,-250.0,0.00015199,2]
[408903239,1774422640882,-250.0,0.00015199,2]
[408903240,1774422640891,-250.0,0.00015199,2]
[408903241,1774422640901,-250.0,0.00015199,2]
[408903242,1774422640910,-693.3919763,0.00015199,2]
[408903243,1774422640919,-250.0,0.00015199,2]
[408903244,1774422640928,-250.0,0.00015199,2]
[408903245,1774422640938,-209.40437684,0.00015199,2]
[408903246,1774422640948,-279.9045709,0.00015199,2]
[408903247,1774422640957,-743.50770149,0.00015199,2]
[408903248,1774422640966,-392.86549759,0.00015199,2]
[408903249,1774422640976,-197.2474,0.000152,2]
[408903250,1774422640985,-500.0,0.00015254,2]
[408903251,1774422640994,-9905.5980765,0.00015254,2]
[408903252,1774422641004,-151.0,0.00015254,2]
[408903253,1774422641013,-272.62944185,0.00015254,2]
[408903254,1774422641023,-230.0,0.00015266,2]
[408903255,1774422641032,-2000.0,0.00015269,2]
[408903256,1774422641041,-2351.0,0.00015274,2]
[408903257,1774422641051,-1100.0,0.000153,5]
[408903258,1774422641060,-500.0,0.00015309,2]
[408903259,1774422641069,-10272.10520533,0.00015309,2]
[408903260,1774422641078,-151.0,0.00015309,2]
[408903261,1774422641088,-282.71673119,0.00015309,2]
[408903262,1774422641098,-1569.0,0.0001536,2]
[408903263,1774422641107,-230.0,0.00015364,2]
[408903264,1774422641117,-500.0,0.00015364,2]
[408903265,1774422641126,-10652.17309792,0.00015364,2]
[408903266,1774422641136,-151.0,0.00015364,2]
[408903267,1774422641145,-293.17725025,0.00015364,2]
[408903268,1774422641155,-414.38,0.00015391,2]
[408903269,1774422641164,-150.0,0.00015395,2]
[408903270,1774422641174,-150.0,0.00015395,2]
[408903271,1774422641183,-150.0,0.00015395,2]
[408903272,1774422641192,-150.0,0.00015395,2]
[408903273,1774422641202,-150.0,0.00015395,2]
[408903274,1774422641211,-150.0,0.00015395,2]
[408903275,1774422641220,-150.0,0.00015395,2]
[408903276,1774422641229,-150.0,0.00015395,2]
[408903277,1774422641239,-150.0,0.00015395,2]
[408903278,1774422641248,-150.0,0.00015395,2]
[408903279,1774422641258,-3516.0,0.00015395,2]
[408903280,1774422641267,-1045.0,0.00015395,2]
[408903281,1774422641276,-621.0,0.00015395,2]
[408903282,1774422641285,-155.0,0.00015399,2]
[408903283,1774422641294,-1400.0,0.000154,5]
[408903284,1774422641303,-500.0,0.00015419,2]
[408903285,1774422641313,-11046.30350255,0.00015419,2]
[408903286,1774422641322,-151.0,0.00015419,2]
[408903287,1774422641331,-182.01266359,0.00015419,2]
[408903288,1774422641340,-1484.75578259,0.00015448,2]
[408903289,1774422641349,-1300.0,0.00015452,2]
[408903290,1774422641358,-1500.0,0.00015452,2]
[408903291,1774422641367,-1000.0,0.00015458,2]
[408903292,1774422641378,-1000.0,0.00015458,2]
[408903293,1774422641387,-267.15444329,0.00015461,2]
[408903294,1774422641396,-172.26314037,0.00015464,2]
[408903295,1774422641406,-500.0,0.00015474,2]
[408903296,1774422641634,-10455.84642916,0.00015474,2]
[408903297,1774422641644,-151.0,0.00015474,2]
[408903298,1774422641653,-230.0,0.00015476,2]
[408903299,1774422641663,-200.0,0.000155,5]
[408903300,1774422641672,-4000.0,0.00015507,2]
[408903301,1774422641681,-500.0,0.00015529,2]
[408903302,1774422641691,-151.0,0.00015529,2]
[408903303,1774422641699,-230.0,0.00015535,2]
[408903304,1774422641709,-11566.98207334,0.00015537,2]
[408903305,1774422641719,-15295.61198971,0.00015548,2]
[408903306,1774422641728,-230.0,0.00015552,2]
[408903307,1774422641737,-500.0,0.00015584,2]
[408903308,1774422641746,-151.0,0.00015584,2]
[408903309,1774422641755,-200.0,0.000156,5]
[408903310,1774422641765,-558.7140213,0.00015612,2]
[408903311,1774422641774,-500.0,0.00015639,2]
[408903312,1774422641783,-151.0,0.00015639,2]
[408903313,1774422641793,-2500.0,0.00015652,2]
[408903314,1774422641802,-1721.06197907,0.00015661,2]
[408903315,1774422641811,-2000.0,0.00015661,2]
[408903316,1774422641820,-5888.0,0.00015669,2]
[408903317,1774422641829,-350.0,0.00015675,2]
[408903318,1774422641839,-3377.00356551,0.0001568,2]
[408903319,1774422641849,-500.0,0.00015694,2]
[408903320,1774422641858,-151.0,0.00015694,2]
[408903321,1774422641867,-150.0,0.00015696,2]
[408903322,1774422641876,-236.14849136,0.00015696,2]
[408903323,1774422641885,-2987.17,0.000157,2]
[408903324,1774422641894,-200.0,0.000157,5]
[408903325,1774422641904,-151.0,0.00015747,2]
[408903326,1774422641913,-181.08010149,0.00015747,2]
[408903327,1774422641923,-200.0,0.00015747,2]
[408903328,1774422641932,-782.52498345,0.00015747,2]
[408903329,1774422641941,-265.18971887,0.00015747,2]
[408903330,1774422641951,-290.26104003,0.00015747,2]
[408903331,1774422641960,-771.01748645,0.00015747,2]
[408903332,1774422641969,-500.0,0.00015749,2]
[408903333,1774422641979,-151.0,0.00015749,2]
[408903334,1774422641989,-487.0112185,0.00015758,2]
[408903335,1774422641998,-150.0,0.0001579,2]
[408903336,1774422642007,-150.0,0.00015796,2]
[408903337,1774422642017,-2595.07,0.000158,2]
[408903338,1774422642027,-926.72,0.000158,2]
[408903339,1774422642036,-200.0,0.000158,5]
[408903340,1774422642046,-150.0,0.00015802,2]
[408903341,1774422642055,-150.0,0.00015804,2]
[408903342,1774422642064,-350.0,0.00015818,2]
[408903343,1774422642074,-305.75,0.00015824,2]
[408903344,1774422642083,-150.0,0.00015837,2]
[408903345,1774422642092,-48202.84326448,0.0001584,2]
[408903346,1774422642102,-479.14336,0.0001584,2]
[408903347,1774422642112,-479.14337,0.0001584,2]
[408903348,1774422642122,-479.14337,0.0001585,2]
[408903349,1774422642131,-150.0,0.0001587,2]
[408903350,1774422642141,-500.0,0.00015871,2]
[408903351,1774422642151,-500.0,0.00015872,2]
[408903352,1774422642162,-200.0,0.00015872,2]
[408903353,1774422642171,-5696.0,0.00015878,2]
[408903354,1774422642180,-4000.0,0.00015895,2]
[408903355,1774422642189,-261.2709112,0.00015899,2]
[408903356,1774422642199,-261.2709112,0.000159,2]
[408903357,1774422642209,-1112.49995649,0.000159,2]
[408903358,1774422642218,-10000.0,0.000159,2]
[408903359,1774422642228,-1618.31138132,0.000159,2]
[408903360,1774422642241,-2300.51699762,0.000159,2]
[408903361,1774422642253,-993.34152341,0.000159,2]
[408903362,1774422642265,-539.93551002,0.000159,2]
[408903363,1774422642350,-2467.0,0.0001508,2]
[408903364,1774422642360,-2076.70612364,0.000159,2]
[408903365,1774422642376,-4038.17053733,0.000159,2]
[408903366,1774422642386,-933.20644794,0.000159,5]
[408903367,1774422642397,-176.79355206,0.000159,5]
[408903368,1774422642407,-261.2709112,0.000159,2]
[408903369,1774422642416,-1484.75578259,0.000159,2]
[408903370,1774422642426,-2237.46750591,0.000159,2]
[408903371,1774422642437,-1117.99168444,0.000159,2]
[408903372,1774422642451,-11940.15279936,0.000159,2]
[408903373,1774422642461,-476.32540456,0.000159,2]
[408903374,1774422642470,-150.0,0.00015928,2]
[408903375,1774422642479,-152.29608993,0.00015933,2]
[408903376,1774422642488,-247.0,0.0001595,2]
[408903377,1774422642498,-183.59,0.00015969,2]
[408903378,1774422642508,-500.0,0.00015973,2]
[408903379,1774422642518,-500.0,0.00015973,2]
[408903380,1774422642527,-500.0,0.00015973,2]
[408903381,1774422642536,-500.0,0.00015973,2]
[408903382,1774422642546,-500.0,0.00015973,2]
[408903383,1774422642555,-500.0,0.00015973,2]
[408903384,1774422642565,-500.0,0.00015973,2]
[408903385,1774422642575,-500.0,0.00015973,2]
[408903386,1774422642585,-608.86332032,0.00015973,2]
[408903387,1774422642594,-500.0,0.00015973,2]
[408903388,1774422642606,-500.0,0.00015973,2]
[408903390,1774422642616,-505.64072652,0.00015973,2]
[408903391,1774422642625,-502.93024548,0.00015973,2]
[408903392,1774422642634,-500.58525136,0.00015973,2]
[408903393,1774422642644,-500.0,0.00015973,2]
[408903395,1774422642653,-349.49866437,0.00015973,2]
[408903396,1774422642663,-500.0,0.00015973,2]
[408903397,1774422642672,-500.0,0.00015973,2]
[408903398,1774422642686,-500.0,0.00015973,2]
[408903399,1774422642695,-500.0,0.00015973,2]
[408903400,1774422642704,-407.9868591,0.00015973,2]
[408903401,1774422642714,-500.0,0.00015973,2]
[408903402,1774422642724,-500.0,0.00015973,2]
[408903403,1774422642733,-500.0,0.00015973,2]
[408903404,1774422642743,-500.6669805,0.00015973,2]
[408903405,1774422642753,-500.0,0.00015973,2]
[408903406,1774422642763,-500.0,0.00015973,2]
[408903407,1774422642773,-150.0,0.00015973,2]
[408903408,1774422642783,-563.4108,0.00015973,2]
[408903409,1774422642792,-563.4108,0.00015973,2]
[408903410,1774422642802,-563.4108,0.00015973,2]
[408903411,1774422642811,-563.4108,0.00015973,2]
[408903412,1774422642821,-151.0,0.00015973,2]
[408903413,1774422642830,-215.0,0.00015974,2]
[408903414,1774422642839,-161.552875,0.00015979,2]
[408903415,1774422642849,-172.26314037,0.0001599,2]
[408903416,1774422642858,-172.26314037,0.0001599,2]
[408903417,1774422642873,-151.0,0.00015997,2]
[408903418,1774422642892,-169187.9692511,0.00015999,2]
[408903419,1774422642906,-10241.7915233,0.00015999,2]
[408903420,1774422642915,-329496.4775975,0.00015999,2]
[408903421,1774422642926,-151.0,0.00015999,2]
[408903422,1774422642936,-151.0,0.00015999,2]
[408903423,1774422642945,-1845.0156332,0.00015999,2]
[408903424,1774422642955,-151.0,0.00015999,2]
[408903425,1774422642965,-151.0,0.00015999,2]
[408903426,1774422642975,-180.7804633,0.00015999,2]
[408903427,1774422642985,-151.0,0.00015999,2]
[408903428,1774422642994,-151.0,0.00015999,2]
[408903429,1774422643004,-24112.0211852,0.00015999,2]
[408903430,1774422643013,-151.0,0.00015999,2]
[408903431,1774422643023,-151.0,0.00015999,2]
[408903432,1774422643032,-151.0,0.00015999,2]
[408903433,1774422643042,-151.0,0.00015999,2]
[408903434,1774422643051,-563.4108,0.00015999,2]
[408903435,1774422643060,-563.4108,0.00015999,2]
[408903436,1774422643069,-563.4108,0.00015999,2]
[408903437,1774422643078,-563.4108,0.00015999,2]
[408903438,1774422643088,-151.0,0.00015999,2]
[408903439,1774422643097,-524.080279,0.00015999,2]
[408903440,1774422643106,-524.080279,0.00015999,2]
[408903441,1774422643115,-524.080279,0.00015999,2]
[408903442,1774422643124,-524.080279,0.00015999,2]
[408903443,1774422643134,-524.080279,0.00015999,2]
[408903444,1774422643143,-524.080279,0.00015999,2]
[408903445,1774422643152,-524.080279,0.00015999,2]
[408903446,1774422643161,-524.080279,0.00015999,2]
[408903447,1774422643170,-237.213281,0.00015999,2]
[408903448,1774422643179,-237.213281,0.00015999,2]
[408903449,1774422643188,-237.213281,0.00015999,2]
[408903450,1774422643198,-237.213281,0.00015999,2]
[408903451,1774422643207,-237.213281,0.00015999,2]
[408903452,1774422643216,-237.213281,0.00015999,2]
[408903453,1774422643225,-237.213281,0.00015999,2]
[408903454,1774422643234,-237.213281,0.00015999,2]
[408903455,1774422643243,-82069.5056271,0.00015999,2]
[408903456,1774422643252,-1093.243076,0.00015999,2]
[408903457,1774422643262,-1093.243076,0.00015999,2]
[408903458,1774422643271,-1093.243076,0.00015999,2]
[408903459,1774422643280,-1093.243076,0.00015999,2]
[408903460,1774422643289,-1093.243076,0.00015999,2]
[408903461,1774422643299,-1093.243076,0.00015999,2]
[408903462,1774422643310,-1093.243076,0.00015999,2]
[408903463,1774422643320,-1093.243076,0.00015999,2]
[408903464,1774422643331,-158.652186,0.00015999,2]
[408903466,1774422643340,-158.652186,0.00015999,2]
[408903468,1774422643350,-151.0,0.00015999,2]
[408903470,1774422643359,-151.0,0.00015999,2]
[408903471,1774422643369,-158.652186,0.00015999,2]
[408903472,1774422643378,-158.652186,0.00015999,2]
[408903473,1774422643387,-151.0,0.00015999,2]
[408903474,1774422643396,-151.0,0.00015999,2]
[408903475,1774422643405,-158.652186,0.00015999,2]
[408903476,1774422643414,-158.652186,0.00015999,2]
[408903477,1774422643423,-158.652186,0.00015999,2]
[408903478,1774422643432,-158.652186,0.00015999,2]
[408903479,1774422643441,-484.138929,0.00015999,2]
[408903480,1774422643450,-484.138929,0.00015999,2]
[408903481,1774422643460,-484.138929,0.00015999,2]
[408903482,1774422643471,-484.138929,0.00015999,2]
[408903483,1774422643481,-484.138929,0.00015999,2]
[408903484,1774422643491,-484.138929,0.00015999,2]
[408903485,1774422643501,-484.138929,0.00015999,2]
[408903488,1774422643510,-484.138929,0.00015999,2]
[408903489,1774422643519,-3392.8828518,0.00015999,2]
[408903490,1774422643529,-388.593738,0.00015999,2]
[408903491,1774422643538,-388.593738,0.00015999,2]
[408903492,1774422643547,-388.593738,0.00015999,2]
[408903493,1774422643556,-388.593738,0.00015999,2]
[408903494,1774422643565,-388.593738,0.00015999,2]
[408903495,1774422643573,-388.593738,0.00015999,2]
[408903496,1774422643583,-388.593738,0.00015999,2]
[408903497,1774422643593,-388.593738,0.00015999,2]
[408903498,1774422643604,-269.0,0.00016,5]
[408903499,1774422643614,-1103837.27467395,0.00016,2]
[408903500,1774422643627,-4926.23470969,0.00016,2]
[408903501,1774422643751,-1854.69999999,0.00016,2]
[408903513,1774422645875,-167.64656967,0.000159,2]
[408903514,1774422645884,-799.03200218,0.000159,2]
[408903515,1774422645992,-500.0,0.000159,2]
[408903521,1774422674745,1180.0,0.000117,5]
[408903522,1774422727500,180.0,0.00011852,2]
[408903523,1774422820728,205.0,9.989e-05,2]
[408903524,1774422821007,205.0,9.989e-05,2]
[408903525,1774422821302,205.0,9.989e-05,2]
[408903526,1774422821648,205.0,9.989e-05,2]
[408903527,1774422906596,181.0,0.00011852,2]
[408903528,1774423043862,2484.28,0.00011507,2]
[408903529,1774423148297,522.69025871,0.0001185,2]
[408903530,1774423199351,-1333.97,0.00012012,2]
[408903531,1774423199375,-7332.07,0.00012012,2]
[408903536,1774423205300,-1200.0,0.00012011,2]
[408903537,1774423205343,-158.87688423,0.000124,2]
[408903538,1774423205384,-158.87688423,0.00012418,2]
[408903539,1774423205423,-236.61948462,0.00012435,2]
[408903541,1774423205462,-158.87688423,0.00012435,2]
[408903542,1774423205501,-300.0,0.00012478,2]
[408903543,1774423205540,-250.0,0.00012479,2]
[408903544,1774423205579,-255.23001645,0.000125,2]
[408903545,1774423205618,-463.43430014,0.000125,2]
[408903546,1774423205661,-486.56698297,0.000125,2]
[408903547,1774423205704,-426.16741599,0.000125,2]
[408903548,1774423205745,-150.0,0.000125,2]
[408903550,1774423205783,-250.0,0.00012518,2]
[408903551,1774423205824,-300.0,0.00012522,2]
[408903552,1774423206060,166.0,0.00011852,2]
[408903553,1774423206197,-410.71229428,0.00012522,2]
[408903559,1774423226897,814.0,0.000109,5]
[408903560,1774423396914,-300.0,0.00012293,2]
[408903561,1774423396953,-9400.01,0.00012294,2]
[408903562,1774423402634,-10000.01,0.00012294,2]
[408903563,1774423410648,1401.0,0.000106,5]
[408903564,1774423554129,-656.34257571,0.00011977,2]
[408903565,1774423647118,-111.17742429,0.00011977,2]
[408903566,1774423647140,-212.13516721,0.00012018,2]
[408903567,1774423647161,-721.77,0.00012059,2]
[408903568,1774423647184,-949.8440375,0.00012293,2]
[408903569,1774423657857,261.39083452,0.000101,2]
[408903570,1774423685173,-250.1559625,0.00012293,2]
[408903571,1774423685202,-300.0,0.00012293,2]
[408903572,1774423685231,-300.0,0.00012293,2]
[408903573,1774423685250,-250.1559625,0.00012294,2]
[408903574,1774423685267,-300.0,0.00012294,2]
[408903575,1774423685278,-300.0,0.00012294,2]
[408903576,1774423685294,-8299.698075,0.00012294,2]
[408903577,1774423691112,-10000.01,0.00012294,2]
[408903578,1774423717033,2504.0,0.000103,5]
[408903579,1774423732963,269.9732861,0.000107,2]
[408903580,1774423739142,147073.72949374,9.5e-05,3]
[408903581,1774423745099,-964.16558192,0.00012294,2]
[408903582,1774423747099,-3719.67038058,0.00012294,2]
[408903583,1774423747120,-103.86562026,0.00012323,2]
[408903593,1774423831894,-298.0,0.00012323,2]
[408903595,1774423831904,-99.13437974,0.00012323,2]
[408903596,1774423831914,-300.0,0.00012523,2]
[408903597,1774423831923,-891.9066535,0.00012523,2]
[408903598,1774423832001,-308.0933465,0.00012523,2]
[408903599,1774423832011,-300.0,0.00012523,2]
[408903600,1774423832021,-150.0,0.00012523,2]
[408903601,1774423832030,-254.3566535,0.00012524,2]
[408903602,1774423832043,-73.5520465,0.00012524,2]
[408903603,1774423832054,-177.1549741,0.00012524,2]
[408903604,1774423832067,-7011.15954504,0.00012524,2]
[408903605,1774423832085,-92875.44856661,0.00012524,2]
[408903662,1774423837990,-70135.72091425,0.00012524,2]
[408903664,1774423838000,-1548.02,0.00012524,2]
[408903666,1774423838010,-856.4,0.00012534,2]
[408903668,1774423838019,-4297.65,0.00012534,2]
[408903669,1774423838029,-150.99,0.00012534,2]
[408903670,1774423838039,-625.58451892,0.00012534,2]
[408903671,1774423838050,-625.58451892,0.00012534,2]
[408903672,1774423838060,-625.58451892,0.00012534,2]
[408903673,1774423838071,-625.58451892,0.00012534,2]
[408903674,1774423838080,-625.58451892,0.00012534,2]
[408903675,1774423838090,-625.58451892,0.00012534,2]
[408903676,1774423838101,-625.58451892,0.00012534,2]
[408903677,1774423838111,-625.58451892,0.00012534,2]
[408903678,1774423838124,-625.58451892,0.00012534,2]
[408903679,1774423838133,-625.58451892,0.00012534,2]
[408903680,1774423838142,-625.58451892,0.00012534,2]
[408903681,1774423838151,-625.58451892,0.00012534,2]
[408903682,1774423838161,-625.58451892,0.00012534,2]
[408903683,1774423838170,-625.58451892,0.00012534,2]
[408903684,1774423838180,-625.58451892,0.00012534,2]
[408903685,1774423838189,-625.58451892,0.00012534,2]
[408903686,1774423838199,-625.58451892,0.00012534,2]
[408903687,1774423838208,-625.58451892,0.00012534,2]
[408903688,1774423838217,-625.58451892,0.00012534,2]
[408903689,1774423838227,-625.58451892,0.00012534,2]
[408903690,1774423838237,-625.58451892,0.00012534,2]
[408903691,1774423838247,-625.58451892,0.00012534,2]
[408903692,1774423838256,-625.58451892,0.00012534,2]
[408903693,1774423838266,-625.58451892,0.00012534,2]
[408903694,1774423838275,-625.58451892,0.00012534,2]
[408903695,1774423838286,-150.65063437,0.00012534,2]
[408903696,1774423838301,-355.710055,0.00012534,2]
[408903697,1774423838312,-119.22382955,0.00012534,2]
[408903698,1774423838323,-625.58451892,0.00012534,2]
[408903699,1774423838332,-625.58451892,0.00012534,2]
[408903700,1774423838342,-625.58451892,0.00012534,2]
[408903701,1774423838351,-625.58451892,0.00012534,2]
[408903703,1774423838705,-625.58451892,0.00012534,2]
[408903704,1774423838719,-625.58451892,0.00012534,2]
[408903705,1774423838730,-625.58451892,0.00012534,2]
[408903706,1774423838744,-625.58451892,0.00012534,2]
[408903707,1774423838753,-625.58451892,0.00012534,2]
[408903708,1774423838763,-625.58451892,0.00012534,2]
[408903709,1774423838772,-625.58451892,0.00012534,2]
[408903710,1774423838781,-625.58451892,0.00012534,2]
[408903711,1774423838791,-625.58451892,0.00012534,2]
[408903712,1774423838803,-625.58451892,0.00012534,2]